Cogmind - Beta 12 @@@ ROGUE MODE // 2023.03.04 @ 16:14:10 Player: Elxavo Result: Destroyed by G-47 Trooper with Particle Gun Performance ------------- Evolutions (0) 0 Regions Visited (1) 200 Robots Destroyed (15) 75 Value Destroyed (249) 249 Prototype IDs (2) 40 Alien Tech Used (0) 0 Bonus (0) 0 TOTAL SCORE: 564 Bonus ------- None Cogmind --------- Core Integrity 0/250 Matter 272/300 Energy 122/125 System Corruption 0% Temperature Cool (19) Movement Treading (160) Location -10/Materials Parts ------- > --- POWER (1) -------- Light Ion Engine > --- PROPULSION (2) --- Light Treads Light Treads > --- UTILITY (2) ------ Large Storage Unit Hacking Suite > --- WEAPON (2) ------- Assault Rifle Light Cannon > --- INVENTORY (15) --- Light Ion Engine Light Ion Engine Light Ion Engine Large Storage Unit Medium Matter Pod (100) Beam Cannon Beam Cannon Light Assault Rifle Light Cannon Datajack Peak State ------------ > --- POWER ------------ Light Ion Engine > --- PROPULSION ------- Light Treads Light Treads > --- UTILITY ---------- Large Storage Unit Hacking Suite > --- WEAPON ----------- Assault Rifle Light Cannon > --- INVENTORY -------- Light Ion Engine Light Ion Engine Light Ion Engine Large Storage Unit Medium Matter Pod Beam Cannon Beam Cannon Light Assault Rifle Light Cannon Datajack [Rating: 10] Favorites ----------- Power Ion Engine Engine Ion Engine Propulsion Light Treads Treads Light Treads Leg Aluminum Leg Utility Large Storage Unit Device Improved Terrain Scanner Storage Large Storage Unit Hackware Hacking Suite Weapon Assault Rifle Ballistic Gun Assault Rifle Ballistic Cannon Light Cannon Build | -11 -10 ------- Run | Jun Mat Slots Evolved . | . . Power . | . . Propulsion . | . . Utility . | . . Weapon . | . . Parts Attached 15 | 7 8 Power 2 | 1 1 Engine 2 | 1 1 Core . | . . Reactor . | . . Propulsion 4 | 2 2 Treads 2 | . 2 Leg 2 | 2 . Wheel . | . . Hover . | . . Flight . | . . Utility 4 | 2 2 Device 1 | 1 . Storage 2 | 1 1 Processor . | . . Hackware 1 | . 1 Protection . | . . Artifact . | . . Weapon 5 | 2 3 Energy Gun . | . . Energy Cannon . | . . Ballistic Gun 3 | 2 1 Ballistic Cannon 2 | . 2 Launcher . | . . Special Weapon . | . . Impact Weapon . | . . Slashing Weapon . | . . Piercing Weapon . | . . Special Melee Weapon . | . . Unidentified Prototypes . | . . Parts Lost 6 | . 6 Power 1 | . 1 Propulsion 2 | . 2 Utility 1 | . 1 Weapon 2 | . 2 Highest Loss Streak 6 | . 6 To Critical Strikes . | . . Average Slot Usage (%) 95 | . 95 Engine 14 | . 14 Treads 16 | . 16 Leg 10 | . 10 Device 4 | . 4 Storage 14 | . 14 Hackware 6 | . 6 Ballistic Gun 16 | . 16 Ballistic Cannon 10 | . 10 Naked Turns . | . . Heaviest Build 30 | 15 30 Greatest Support 40 | 20 40 Greatest Overweight (x) 1 | 1 1 Average Overweight (x) . | . . Largest Inventory Capacity 15 | 8 15 Average Capacity 11 | 7 13 Most Carried 10 | 6 10 Average Carried 6 | 4 7 Final Capacity 15 | 8 15 Final Carried 10 | 4 10 Class Distribution -------------------- 100% | Mutant Dominant Class ---------------- Mutant | -10/Materials Resources | -11 -10 ----------- Run | Jun Mat Matter Collected 694 | 259 435 Remotely . | . . Salvage Created 355 | 11 344 Parts 25 | 3 22 Haulers Intercepted . | . . Recyclers Shooed 2 | . 2 Parts Field Recycled . | . . Retrieved Matter . | . . Parts Self-Destructed . | . . Prevented . | . . Kills | -11 -10 ------- Run | Jun Mat Combat Hostiles Destroyed 8 | . 8 Guns 2 | . 2 Cannons 6 | . 6 Classes Destroyed 6 | 1 5 Worker 3 | . 3 Builder 2 | . 2 Tunneler 1 | 1 . Recycler 1 | . 1 Swarmer 3 | . 3 Grunt 5 | . 5 Best Kill Streak 4 | 1 4 Combat Bots Only 3 | . 3 Max Kills in Single Turn 1 | 1 1 Gunslinging . | . . Exploded . | . . Melee . | . . Uniques/NPCs Destroyed . | . . Combat | -11 -10 -------- Run | Jun Mat Damage Taken 1118 | . 1118 Core 254 | . 254 Absorbed by Shields . | . . Core Remaining (%) 100 | 100 . Volleys Fired 56 | 1 55 Largest 2 | 2 2 Hottest 70 | 40 70 Shots Fired 107 | 2 105 Gun 55 | 2 53 Cannon 52 | . 52 Launcher . | . . Special . | . . Kinetic 107 | 2 105 Thermal . | . . Explosive . | . . Electromagnetic . | . . Robot Hit Streak 11 | 1 11 Robot Miss Streak 4 | 1 4 Penetration Max . | . . Secondary Targets 1 | . 1 Max Gunslinging Chain 1 | . 1 Shots Hit Robots 60 | 1 59 Core Hits 23 | 1 22 Critical Kills 2 | 1 1 Critical Parts Destroyed 1 | . 1 Critical Strikes 4 | 1 3 Destroy 3 | 1 2 Blast 1 | . 1 Melee Attacks . | . . Impact . | . . Slashing . | . . Piercing . | . . Sneak Attacks . | . . Combat Hostiles . | . . Follow-up Attacks . | . . Damage Inflicted 993 | 10 983 Guns 469 | 10 459 Cannons 524 | . 524 Explosions . | . . Melee . | . . Ramming . | . . Kinetic 993 | 10 983 Thermal . | . . Explosive . | . . Electromagnetic . | . . Impact . | . . Slashing . | . . Piercing . | . . Highest Corruption . | . . Average Corruption . | . . Corruption Purged . | . . Corruption Blocked . | . . Overload Shots . | . . Overflow Damage . | . . Projectiles . | . . Explosions . | . . Melee . | . . Knockbacks 9 | . 9 Impact . | . . Kinetic 9 | . 9 Secondary . | . . Self-Inflicted Damage . | . . Shots . | . . Rammed . | . . Targets Rammed . | . . Kicked . | . . Crushed . | . . Highest Temperature 189 | . 189 Average Temperature 50 | . 50 Received Heat Transfer 534 | . 534 Siege Activations . | . . Robots Corrupted . | . . Combat Hostiles . | . . Parts Fried . | . . Impact Corruptions . | . . Robots Melted . | . . Combat Hostiles . | . . Parts Melted . | . . Heat Transferred . | . . Parts Sabotaged . | . . Parts Stolen . | . . Parts Stripped . | . . Power Chain Reactions . | . . Missiles Intercepted . | . . Alert | -11 -10 ------- Run | Jun Mat Peak Influence 163 | 5 163 Initial 3 | . 3 Average 26 | 2 35 Maximum Alert Level . | . . Low Security (%) 100 | 100 100 Level 1 . | . . Level 2 . | . . Level 3 . | . . Level 4 . | . . Level 5 . | . . High Security . | . . Max Security . | . . Squads Dispatched 1 | . 1 Investigation . | . . Extermination . | . . Reinforcement 1 | . 1 Assault . | . . Garrison . | . . Intercept . | . . Searches Triggered . | . . Construction Impeded . | . . Haulers Reinforced . | . . Active Scanning Responses . | . . Cargo Convoy Interrupts . | . . Stealth | -11 -10 --------- Run | Jun Mat Distress Signals 1 | . 1 Communications Jammed . | . . Distress Signals . | . . Times Spotted 14 | . 14 Peak Tracking Total 6 | . 6 Tactical Retreats . | . . Traps | -11 -10 ------- Run | Jun Mat Traps Triggered . | . . Indirectly . | . . Trap Hack Attempts . | . . Triggered . | . . Disarmed . | . . Reprogrammed . | . . Reused . | . . Traps Extracted . | . . Installed . | . . Triggered . | . . Machines | -11 -10 ---------- Run | Jun Mat Machines Disabled 1 | . 1 Max in Single Turn 1 | . 1 Machines Repaired . | . . Machines Sabotaged . | . . Overloaded Fab Kills . | . . Hacking | -11 -10 --------- Run | Jun Mat Machines Accessed 2 | . 2 Terminals 1 | . 1 Fabricators . | . . Repair Stations 1 | . 1 Recycling Units . | . . Scanalyzers . | . . Garrison Access . | . . Total Hacks 2 | . 2 Successful 1 | . 1 Failed 1 | . 1 Catastrophic . | . . Database Lockouts . | . . Manual . | . . Terminals 1 | . 1 Fabricators . | . . Repair Stations 1 | . 1 Recycling Units . | . . Scanalyzers . | . . Garrison Access . | . . Terminal Hacks 1 | . 1 Prototype ID Bank 1 | . 1 Fabricator Hacks . | . . Repair Station Hacks . | . . Recycling Unit Hacks . | . . Scanalyzer . | . . Garrison Access Hacks . | . . Unauthorized Hacks . | . . Terminals . | . . Fabricators . | . . Repair Stations . | . . Recycling Units . | . . Scanalyzers . | . . Garrison Access . | . . Data Cores Recovered . | . . Used . | . . Hacking Detections 1 | . 1 Full Trace Events . | . . Feedback Events . | . . Feedback Blocked . | . . Robot Schematics Acquired . | . . Robots Built . | . . Authchips . | . . Time . | . . Total Robot Build Rating . | . . Part Schematics Acquired . | . . Parts Built . | . . Authchips . | . . Time . | . . Total Part Build Rating . | . . Parts Repaired . | . . Time . | . . Parts Recycled . | . . Recycled Matter . | . . Retrieved Matter . | . . Retrieved Components . | . . Parts Scanalyzed . | . . Part Schematics Acquired . | . . Parts Damaged . | . . Bothacking | -11 -10 ------------ Run | Jun Mat Used RIF Installer . | . . Robots Hacked . | . . Non-combat . | . . Combat . | . . Robot Hacks Applied . | . . Relay Couplers Released . | . . Fabnet Peak Effective % . | . . Robots Rewired . | . . Allies Hacked . | . . Hacks Repelled . | . . Allies | -11 -10 -------- Run | Jun Mat Total Allies . | . . Largest Group . | . . Highest-Rated Group . | . . Highest-Rated Ally . | . . Total Orders . | . . Ally Attacks . | . . Total Damage . | . . Kills . | . . Allies Corrupted . | . . Allies Melted . | . . Intel | -11 -10 ------- Run | Jun Mat Robot Analysis Total . | . . Derelict Logs Recovered . | . . Drone Launches . | . . Drone Recoveries . | . . Exploration | -11 -10 ------------- Run | Jun Mat Turns Passed 918 | 229 689 Spaces Moved 487 | 138 349 Core 13 | 13 . Treads 202 | . 202 Legs 272 | 125 147 Wheels . | . . Hover . | . . Flight . | . . Fastest Speed 50 | 50 120 Average Speed 147 | 150 145 Slowest Speed 190 | 190 190 Overloaded Moves . | . . Propulsion Burnouts . | . . Robots Hopped . | . . Cave-ins Triggered . | . . Exploration Rate (%) 25 | 8 42 Regions Visited 1 Branch Regions . Pre-discovered Areas . | . . Known Exits Taken . | . . Unknown Exits Taken 1 | 1 . Scrap Searched . | . . Spaces Dug . | . . Terrain Destroyed . | . . Melee . | . . Projectile . | . . AOE . | . . Terrain Rammed . | . . Walls Destroyed . | . . Machines Disabled . | . . Actions | -11 -10 --------- Run | Jun Mat Total 582 | 156 426 Wait . | . . Move 486 | 137 349 Hop . | . . Pick Up 24 | 11 13 Fast Attach . | . . Attach 13 | 7 6 Detach . | . . Swap 2 | . 2 Drop 1 | . 1 Fire 56 | 1 55 Melee . | . . Ram . | . . Kick . | . . Crush . | . . Escape Stasis . | . . Rewire . | . . Trap . | . . Miscellaneous . | . . Route ------- -11/Junkyard -10/Materials History --------- Turn | Location | Event 5 | -11/Junkyard | Discovered new exit (range 14) 230 | -11/Junkyard | Entered Materials 307 | -10/Materials | Build established: Mutant 472 | -10/Materials | Core integrity fell below 50% 507 | -10/Materials | Core integrity fell below 20% 525 | -10/Materials | Lost 6 parts (1p2n1u2w) 919 | -10/Materials | Destroyed by G-47 Trooper with Particle Gun Last Messages --------------- 00633_ K-01 Serf collects debris. 00647_ U-05 Engineer knocked back. 00650_ U-05 Engineer destroyed. 00655_ Acquired 22 matter. 00686_ R-06 Scavenger collects Wheel. 00691_ Acquired 3 matter. 00699_ K-01 Serf destroyed. 00700_ R-06 Scavenger collects Wheel. 00702_ Acquired 11 matter. 00706_ R-06 Scavenger collects Wheel. 00707_ Acquired Lgt. Ion Engine. 00711_ R-06 Scavenger collects Wheel. 00725_ K-01 Serf cleans the Terminal. 00764_ Connecting with Repair Station... 00804_ U-05 Engineer destroyed. 00807_ R-06 Scavenger collects Wheel. 00807_ Acquired 14 matter. 00810_ R-06 Scavenger collects Structural Scanner. 00858_ Acquired Beam Cannon. 00892_ Material Compactor disabled. Map ----- +----------------------------------------------------+ | ????????????????????????????????????# ^^ ^ ##! ! | | ????????????????????????????????????# % #! | | ?????????????????????????????#??????# # | | ??????????????????????????? #??????# # | | ??????????????????????????? ???????# | | ??????????????????????????? ???????# | | ?????????????????????????# ??????## | | ????????????????????????## ###+### % # ##### | | ??????????????????????? # #??#? | | ??????????????????????? T # #???# | | ??????????????????????? # #?### | | ????????????????????????#### ####### # #?# | | ???????????????????????????# ##????### ### % ### | | ???????????????????????????# #???????# #?#% #"" | | ???????????????????????????# #??#????#%#?# #"Y | | ?????????????????????????###+#######?# #?# #"" | | ?????????????????????????# /#?# #?# ### | | ?????????????????????????# " " #?# #?# #?# | | ?????????????????????????# """"" #?# ### ##### | | ?????????????????????????# """"" #?# ## #### | | ?????????????????????????# """"" #?# ## | | ?????????????????????????#= """ #?# ## | | ?????????????????????????# #?# ## | | ?????????????????????????# #?# ## #### | | ?????????????????#########+#####+#####+####+###### | | ?????????? g @ # # T | | ?????????????????######### # # | | ?????????????????????????# + # | | ?????????????????????????#### # # | | ???????????????????????? / a # [ =# | | ???????????????????????# # ] # """"" | | ???????????????????????# +^ ]= # """"" | | ???????????????????????# ######### """"" | | ???????????????????????# ###+##???????# | | ???????????????????????## #?????????????###" ""# | | ????????????????????????# ????????????????#"R""# | | ????????????????????????# ?????????????????#""" # | | ????????????????????????# ?????????????????###### | | ????????????????????????# ????????????????????#??? | | ?????????????????????????????????????????????????? | | ??????????????????????????????????????????#??????? | | ???????????????????????????????????????????????#?? | | ?????????????????????????????????????????????????? | | ?????????????????????????????????????????????????? | | ?????????????????????????????????????????????????? | | ?????????????????????????????????????????????????? | | ?????????????????????????????????????????????????? | | ?????????????????????????????????????????????????? | | ?????????????????????????????????????????????????? | | ?????????????????????????????????????????????????? | +----------------------------------------------------+ Best States ------------- Heat Dissipation 25 Energy Generation 10 Energy Capacity 250 Matter Stores 300 Matter Capacity 300 Sight Range 16 Terrain Scan Range 16 Terrain Scan Density 10 Evasion (%) 55 Recoil Reduction 2 Offensive Hacking 10 Item Schematics ----------------- None Robot Schematics ------------------ None Fabricated ------------ Nothing Alien Tech Used ----------------- None Achievements -------------- None Challenges ------------ None Game ------ Seed MetafieldVisualShockpuncher Manual? 0 Play Time 00:20:50 Cumulative 5.8 hours Start 2023.03.04 @ 15:01:09 End 2023.03.04 @ 16:14:10 Sessions 2 Manual Loads 0 Difficulty Rogue Special Mode None Game No. 4 Rogue 4 Adventurer 0 Explorer 0 Win Type - Total 0 Types 0/0/0/0/0/0/0/0/0 Lore% 5 Gallery% 7 Achievement% 8 Wizard Run 0 Options --------- ASCII 0 Keyboard 0 Movement Mouse Keybinds 0 Fullscreen 1 Font 16/Terminus Map View 76x50 Tactical HUD 1 Map Filters NONE Filters NONE Steam 1 RUN: 9754e5d6-a60c-442b-a1b5-d5c46eea702a